bitfinex-derivatives/quotes_ETHF0:USTF0_20251210
["timestamp","ask_amount","ask_price","bid_price","bid_amount"]
[1765356902977,3.2078,3325.7,3325.4,0.15035]
[1765356903176,3.2078,3325.7,3325.6,0.92868175]
[1765356903375,3.89470569,3325.7,3325.6,0.92868175]
[1765356904077,3.89470569,3325.7,3325.4,0.15035]
[1765356904275,0.68690569,3325.6,3325.4,0.15035]
[1765356904880,3.2078,3325.7,3325.4,3.87049387]
[1765356906581,0.00451066,3325.9,3325.6,0.92868175]
[1765356906778,0.00451066,3325.9,3325.6,1.07903175]
[1765356907176,0.00451066,3325.9,3325.7,0.15034]
[1765356908279,0.00451066,3325.9,3325.8,0.15034]
[1765356909888,0.00451066,3325.9,3325.8,3.87048387]
[1765356910383,0.9691897,3326.6,3326.0,0.15033]
[1765356910589,0.9691897,3326.6,3326.2,0.92868175]
[1765356911587,0.9691897,3326.6,3326.2,1.07900175]
[1765356912089,0.9691897,3326.6,3326.2,0.15032]
[1765356915088,0.6867329,3326.6,3326.2,0.15032]
[1765356921692,3.21231066,3326.7,3326.3,0.15031]
[1765356927798,0.92802989,3326.4,3326.2,3.72014387]
[1765356928094,3.89180972,3326.3,3326.2,3.72014387]
[1765356931799,3.89180972,3326.3,3325.6,0.15035]
[1765356931992,0.68400972,3326.2,3325.6,0.15035]
[1765356936699,0.68400972,3326.2,3325.8,0.15034]
[1765356936905,3.2078,3326.3,3325.8,0.15034]
[1765356937505,3.2078,3326.3,3325.8,3.87048387]
[1765356943408,3.2078,3326.3,3325.8,0.15034]
[1765356944304,0.68501887,3326.2,3325.8,0.15034]
[1765356944606,3.2078,3326.3,3325.8,0.15034]
[1765356946011,0.68500885,3326.2,3325.8,0.15034]
[1765356946213,3.2078,3326.3,3325.8,0.15034]
[1765356952314,0.68514173,3326.2,3325.7,3.72014387]
[1765356952514,0.92802989,3326.0,3325.7,3.72014387]
[1765356954311,3.2078,3326.3,3325.7,3.72014387]
[1765356954513,0.68584197,3326.2,3325.7,3.72014387]
[1765356955516,0.68584197,3326.2,3325.5,3.2078]
[1765356955910,0.68584197,3326.2,3325.5,3.35815]
[1765356956110,0.9686772,3326.2,3325.5,3.35815]
[1765356957817,3.2078,3325.9,3325.5,0.15035]
[1765356960919,3.2078,3326.3,3325.5,0.15035]
[1765356961115,0.96948074,3326.2,3325.5,0.15035]
[1765356971838,3.2078,3325.9,3325.5,0.15035]
[1765356974738,3.2078,3326.3,3325.5,0.15035]
[1765356974943,0.97008847,3326.2,3325.5,0.15035]
[1765356976848,0.97008847,3326.2,3325.6,0.15035]
[1765356977138,0.97008847,3326.2,3325.7,0.15034]
[1765356977346,0.68698497,3326.2,3325.7,0.15034]
[1765356978138,0.6853606,3326.2,3325.7,0.15034]
[1765356979649,0.96841613,3326.2,3325.7,0.15034]
[1765356983664,0.6853606,3326.2,3325.7,0.15034]
[1765356994476,0.6853606,3326.2,3325.7,1.07864562]
[1765356995973,0.6853606,3326.2,3325.8,0.15034]
[1765356998272,0.96838976,3326.2,3325.8,0.15034]
[1765357002182,0.6853606,3326.2,3325.8,0.15034]
[1765357002382,0.96841628,3326.2,3325.8,0.15034]
[1765357010492,0.92830562,3325.9,3325.5,5.36480782]
[1765357010688,0.92830562,3325.6,3325.3,0.15036]
[1765357028499,0.92830562,3325.6,3325.2,0.00451065]
[1765357028802,0.92830562,3325.3,3325.2,0.00451065]
[1765357036703,4.13610562,3325.3,3325.2,0.00451065]
[1765357036905,4.81934471,3325.3,3325.2,0.00451065]
[1765357038708,4.82009325,3325.3,3325.2,0.00451065]
[1765357039905,3.89103909,3325.3,3325.2,0.00451065]
[1765357040107,4.82009325,3325.3,3325.2,0.00451065]
[1765357040700,4.82009325,3325.3,3324.4,2.28137462]
[1765357040900,0.96587361,3325.2,3324.4,0.1243668]
[1765357041821,0.96587361,3325.2,3324.5,0.00451066]
[1765357045217,0.68323909,3325.2,3324.5,0.00451066]
[1765357055316,0.68323909,3325.2,3324.6,0.15039]
[1765357063220,0.96301182,3325.2,3324.6,0.15039]
[1765357066820,0.96301182,3325.2,3324.7,0.15039]
[1765357076836,0.68375517,3325.1,3324.7,0.15039]
[1765357077036,0.9635279,3325.2,3324.7,0.15039]
[1765357083543,0.9635279,3325.2,3324.5,0.00451066]
[1765357083744,0.92905416,3324.8,3324.5,0.00451066]
[1765357083953,0.9635279,3324.7,3324.5,0.00451066]
[1765357088346,0.68375517,3324.7,3324.5,0.00451066]
[1765357090842,0.96550968,3324.8,3324.5,0.00451066]
[1765357091040,0.68614945,3324.8,3324.5,0.00451066]
[1765357100550,0.96538631,3324.8,3324.5,0.00451066]
[1765357100751,0.92930958,3324.6,3324.5,0.00451066]
[1765357101159,1.61306475,3324.6,3324.5,0.00451066]
[1765357102157,0.68375517,3324.6,3324.5,0.00451066]
[1765357102356,0.96540984,3324.8,3324.5,0.00451066]
[1765357102855,0.68614945,3324.8,3324.5,0.00451066]
[1765357103052,0.96540984,3324.8,3324.5,0.00451066]
[1765357104857,0.92930958,3324.6,3324.5,0.00451066]
[1765357105050,1.61306475,3324.6,3324.5,0.00451066]
[1765357110762,0.68375517,3324.6,3324.5,0.00451066]
[1765357110957,0.96548388,3324.8,3324.5,0.00451066]
[1765357118064,0.92930958,3324.7,3324.5,0.00451066]
[1765357118259,0.9630896,3324.6,3324.5,0.00451066]
[1765357145099,0.96341574,3324.6,3324.5,0.00451066]
[1765357157506,0.95784407,3324.6,3324.5,0.00451066]
[1765357159000,0.95783958,3324.6,3324.5,0.00451066]
[1765357180124,2.54642715,3324.8,3324.5,0.00451066]
[1765357180125,0.95783958,3324.7,3324.5,0.00451066]
[1765357180422,0.27965608,3324.6,3324.5,0.00451066]
[1765357180623,0.95783958,3324.7,3324.5,0.00451066]
[1765357183527,0.6781835,3324.6,3324.5,0.00451066]
[1765357183824,0.95783958,3324.7,3324.5,0.00451066]
[1765357189535,0.6781835,3324.6,3324.5,0.00451066]
[1765357189722,0.95783958,3324.7,3324.5,0.00451066]
[1765357190224,1.10822958,3324.7,3324.5,0.00451066]
[1765357190424,0.27965608,3324.6,3324.5,0.00451066]
[1765357190620,0.27965608,3324.6,3324.4,0.00359955]
[1765357190924,3.2078,3324.5,3324.4,0.00359955]
[1765357191129,4.16563958,3324.5,3324.4,0.00359955]
[1765357193930,4.16512362,3324.5,3324.4,0.00359955]
[1765357195031,4.16512362,3324.5,3323.0,3.35826]
[1765357195219,4.1371562,3323.6,3323.0,3.35826]
[1765357196030,4.1371562,3323.6,3323.0,3.361168]
[1765357200131,3.2078,3324.0,3323.0,3.361168]
[1765357200333,3.2078,3323.6,3323.0,3.361168]
[1765357201733,3.2078,3324.1,3323.2,0.15045]
[1765357202525,0.67816494,3324.0,3323.2,0.15045]
[1765357202734,1.60789567,3324.0,3323.2,0.15045]
[1765357203439,0.92973073,3324.0,3323.2,0.15045]
[1765357205339,3.2078,3324.1,3323.2,0.15045]
[1765357206935,3.2078,3324.1,3323.3,0.15045]
[1765357207141,3.2078,3324.1,3323.4,3.35824]
[1765357208239,3.2078,3324.1,3323.6,0.15044]
[1765357215735,3.2078,3324.1,3323.5,3.72014387]
[1765357215941,3.2078,3324.5,3323.9,0.15042]
[1765357216141,0.6782922,3324.4,3323.9,0.15042]
[1765357217145,0.6782922,3324.4,3324.0,0.15042]
[1765357217344,3.2078,3324.5,3324.0,0.15042]
[1765357218240,3.2078,3324.5,3324.1,0.15041]
[1765357218453,3.2078,3324.5,3323.8,3.2078]
[1765357219143,3.2078,3324.5,3324.3,0.1504]
[1765357231670,3.2078,3324.5,3324.4,0.1504]
[1765357238280,0.00239428,3324.8,3324.5,0.15039]
[1765357240882,0.68303709,3324.8,3324.5,0.15039]
[1765357241382,0.00239428,3324.8,3324.5,0.15039]
[1765357241582,0.68308541,3324.8,3324.5,0.15039]
[1765357251384,0.68308541,3324.8,3324.6,3.2078]
[1765357251591,1.61282979,3325.6,3324.7,3.72014387]
[1765357251787,0.95985986,3325.5,3325.0,3.2078]
[1765357251992,0.680721,3325.4,3325.0,3.2078]
[1765357252291,0.95986993,3325.6,3325.0,3.2078]
[1765357252683,0.96798575,3325.6,3325.0,3.21231066]
[1765357252891,0.96798575,3325.6,3325.2,0.15036]
[1765357253992,0.96798575,3325.6,3325.2,1.07952793]
[1765357254492,0.68883682,3325.6,3325.2,1.07952793]
[1765357254891,0.68883682,3325.6,3325.3,0.15036]
[1765357256188,0.00811582,3325.6,3325.3,0.15036]
[1765357256390,0.00811582,3325.6,3325.4,0.15036]
[1765357256684,0.00811582,3325.6,3325.4,0.15395175]
[1765357262700,0.00811582,3325.6,3325.5,0.15035]
[1765357262901,0.00811582,3325.6,3325.5,1.07951793]
[1765357264003,0.67897011,3326.4,3326.0,0.15033]
[1765357264393,3.2078,3326.5,3326.0,0.15033]
[1765357265014,3.21052476,3326.5,3326.0,0.15033]
[1765357267999,3.2078,3326.1,3325.4,0.15394175]
[1765357268187,0.92916793,3325.6,3325.4,0.15394175]
[1765357268395,3.2078,3325.7,3325.4,0.15394175]
[1765357272098,0.92916793,3325.6,3325.4,0.00359175]
[1765357278108,0.67897384,3325.5,3325.4,0.00359175]
[1765357280904,1.60792551,3325.5,3325.4,0.00359175]
[1765357281803,1.88662126,3325.5,3325.4,0.00359175]
[1765357286612,1.88662126,3325.5,3325.0,0.00451066]
[1765357286908,4.13675167,3325.1,3324.0,6.92794387]
[1765357287107,3.2078,3324.7,3324.0,3.2078]
[1765357287607,3.2078,3324.7,3324.0,3.21023448]
[1765357287805,3.21231066,3324.7,3324.0,3.21474514]
[1765357288208,3.21231066,3324.7,3324.0,3.36516514]
[1765357304224,0.67882049,3324.6,3324.0,3.36516514]
[1765357306323,3.2078,3324.3,3324.0,0.00694514]
[1765357307923,4.13675167,3324.3,3324.0,0.00694514]
[1765357308125,3.2078,3324.3,3324.0,0.00694514]
[1765357309528,0.68537738,3324.2,3324.0,0.00694514]
[1765357311131,0.96419487,3324.2,3324.0,0.00694514]
[1765357320735,1.07936167,3324.1,3323.0,3.2078]
[1765357320934,3.2078,3323.1,3322.6,0.15048]
[1765357321135,0.92895167,3323.0,3322.2,3.2078]
[1765357321340,3.2078,3322.7,3322.2,3.2078]
[1765357321636,3.2078,3322.7,3322.2,3.21113474]
[1765357321832,0.92895167,3322.3,3322.2,0.00333474]
[1765357322037,4.13675167,3322.3,3322.2,0.00333474]
[1765357322343,3.2078,3322.3,3322.2,0.00333474]
[1765357323441,0.92895167,3322.6,3322.2,0.00333474]
[1765357324144,3.2102153,3322.7,3322.2,0.00333474]
[1765357324440,4.13916697,3322.7,3322.2,0.00333474]
[1765357325231,3.2078,3322.3,3322.2,0.00333474]
[1765357331546,4.13675167,3322.3,3322.2,0.00333474]
[1765357332651,3.2078,3322.3,3322.2,0.00333474]
[1765357337751,4.13675167,3322.3,3322.2,0.00333474]
[1765357339961,3.2078,3322.3,3322.2,0.00333474]
[1765357342756,4.13837896,3322.3,3322.2,0.00333474]
[1765357343667,3.2078,3322.3,3322.2,0.00333474]
[1765357343860,4.13837896,3322.3,3322.2,0.00333474]
[1765357348468,4.79193283,3322.3,3322.2,0.00333474]
[1765357349166,5.07119612,3322.3,3322.2,0.00333474]
[1765357350567,5.07119612,3322.3,3321.6,1.76469957]
[1765357350568,5.07119612,3322.3,3321.6,0.15053]
[1765357350769,4.13837896,3321.8,3321.6,0.15053]
[1765357351270,3.2078,3321.8,3321.6,1.76469957]
[1765357351466,3.2078,3321.8,3321.6,1.76800887]
[1765357352668,4.13837896,3321.8,3321.6,1.76800887]
[1765357353769,0.93057896,3321.7,3321.6,1.76800887]
[1765357354069,3.2078,3321.8,3321.6,1.76800887]
[1765357356170,3.2078,3321.8,3321.7,1.61416957]
[1765357356369,4.14079426,3322.7,3321.7,1.76468957]
[1765357356567,0.65490815,3322.6,3322.2,0.93057896]
[1765357356764,3.2102153,3322.7,3322.3,1.61416957]
[1765357358376,3.2102153,3322.7,3322.2,1.61416957]
[1765357361170,0.93057896,3322.5,3322.2,1.61416957]
[1765357361975,3.2102153,3322.7,3322.2,1.61416957]
[1765357362173,0.93057896,3322.5,3322.2,1.61416957]
[1765357362369,3.2078,3322.3,3322.1,1.61416957]
[1765357362574,0.93057896,3322.1,3321.9,1.61416957]
[1765357362768,0.93057896,3322.1,3321.6,0.0033093]
[1765357362769,0.93057896,3322.1,3321.8,1.61416957]
[1765357363970,0.93057896,3322.1,3321.7,1.61416957]
[1765357365273,0.93057896,3322.1,3321.6,1.61747887]
[1765357365473,0.93057896,3321.8,3321.6,1.61747887]
[1765357367679,4.13837896,3321.8,3321.6,0.0033093]
[1765357371881,0.93057896,3321.7,3321.6,0.0033093]
[1765357372081,3.2078,3321.8,3321.6,0.0033093]
[1765357385892,0.425,3322.0,3321.7,0.93057896]
[1765357386397,0.425,3322.0,3321.6,0.0033093]
[1765357386806,0.93057896,3321.8,3321.6,0.0033093]
[1765357389397,0.4312,3321.5,3320.8,2.15222609]
[1765357389603,0.4312,3321.0,3320.7,0.15057]
[1765357390397,0.4312,3321.0,3320.7,0.15290266]
[1765357391701,1.36177896,3321.0,3320.7,0.15290266]
[1765357393004,3.2078,3320.9,3320.7,0.00233266]
[1765357393400,3.2078,3320.9,3320.1,3.2078]
[1765357393401,6.0,3320.8,3320.1,5.36002609]
[1765357393707,3.639,3320.5,3320.0,0.1506]
[1765357394508,0.4312,3320.0,3319.9,0.93057896]
[1765357394700,0.43367936,3320.0,3319.9,0.93337531]
[1765357395312,0.43367936,3320.0,3319.9,0.00279635]
[1765357399504,1.87467936,3320.0,3319.9,0.00279635]
[1765357402704,1.41,3318.4,3318.3,2.89072609]
[1765357403008,0.00451752,3318.7,3318.6,1.4371]
[1765357403607,0.00451752,3318.7,3318.6,1.43992694]
[1765357404009,4.6178,3319.4,3319.3,1.4371]
[1765357404213,2.1462,3319.4,3319.3,2.36767896]
[1765357404713,0.7362,3319.4,3319.3,1.4371]
[1765357405014,2.1462,3319.4,3319.3,1.4371]
[1765357405201,2.1462,3319.4,3319.1,3.2078]
[1765357405406,1.41,3319.2,3319.1,4.6449]
[1765357405708,1.41,3319.2,3319.0,0.00451752]
[1765357405709,1.41,3319.1,3319.0,0.74301752]
[1765357406012,1.41,3319.1,3319.0,1.44161752]
[1765357406909,1.41,3319.1,3319.0,0.74301752]
[1765357408214,1.41,3319.1,3319.0,0.00451752]
[1765357408410,1.41,3319.1,3319.0,0.74301752]
[1765357409114,1.41,3319.1,3319.0,0.00451752]
[1765357409915,1.41,3319.1,3319.0,0.74301752]
[1765357410321,1.41,3319.1,3319.0,1.44161752]
[1765357410516,1.41,3319.1,3319.0,0.74301752]
[1765357414015,1.41,3319.1,3319.0,0.00451752]
[1765357414203,1.41,3319.1,3319.0,0.74301752]
[1765357414409,1.41,3319.1,3319.0,1.44161752]
[1765357415508,1.41,3319.1,3319.0,0.74301752]
[1765357416115,1.41,3319.1,3319.0,1.44161752]
[1765357416508,0.6738,3319.1,3319.0,1.44161752]
[1765357416808,3.2078,3319.3,3319.2,1.4371]
[1765357416809,3.8816,3319.3,3319.2,1.4371]
[1765357417013,4.6178,3319.3,3319.2,1.4371]
[1765357417615,3.8816,3319.3,3319.2,1.4371]
[1765357417811,0.6738,3319.3,3319.2,1.4371]
[1765357418213,0.6738,3319.5,3319.4,1.4371]
[1765357418618,1.8552,3319.5,3319.4,1.4371]
[1765357418818,1.119,3319.5,3319.4,1.4371]
[1765357419119,1.8552,3319.5,3319.4,1.4371]
[1765357420218,0.67831752,3319.7,3319.6,1.4371]
[1765357420514,1.41451752,3319.7,3319.6,1.4371]
[1765357422419,1.41451752,3319.7,3319.6,0.7385]
[1765357423115,1.41451752,3319.7,3319.2,0.15064]
[1765357423416,0.6738,3319.3,3319.2,1.58774]
[1765357423616,1.41,3319.3,3319.2,1.58774]
[1765357423818,0.6738,3319.3,3319.2,1.58774]
[1765357424018,0.6738,3319.5,3319.4,1.4371]
[1765357424711,1.41451752,3319.7,3319.6,1.4371]
[1765357426324,0.00451752,3319.7,3319.6,1.4371]
[1765357426718,0.67831752,3319.7,3319.6,1.4371]
[1765357427618,1.41451752,3319.7,3319.6,1.4371]
[1765357431127,0.67831752,3319.7,3319.6,1.4371]
[1765357431327,1.41451752,3319.7,3319.6,1.4371]
[1765357432829,1.4412,3319.4,3319.3,2.15222609]
[1765357433029,1.4412,3319.2,3319.1,0.687]
[1765357433330,1.4412,3319.2,3319.1,1.4195]
[1765357434232,1.4412,3319.2,3319.1,0.687]
[1765357436232,1.4412,3319.2,3319.0,3.21231752]
[1765357436233,1.4412,3319.1,3319.0,3.89931752]
[1765357436630,1.4412,3319.1,3319.0,3.21231752]
[1765357436830,1.4412,3319.1,3319.0,3.89931752]
[1765357438736,0.7007,3319.1,3319.0,4.63181752]
[1765357438936,3.6511,3319.5,3319.0,4.63181752]
[1765357439235,0.7007,3319.1,3319.0,4.78246752]
[1765357439939,5.0923,3319.5,3319.4,1.4195]
[1765357440145,5.0923,3319.5,3319.4,0.687]
[1765357440930,5.0923,3319.5,3319.4,1.4195]
[1765357441537,5.0923,3319.5,3319.1,0.15064]
[1765357441538,1.4412,3319.2,3319.1,1.57014]
[1765357441730,0.7007,3319.2,3319.1,1.57014]
[1765357442133,5.0923,3319.5,3319.4,0.687]
[1765357442442,5.0923,3319.5,3319.4,1.4195]
[1765357442840,4.3518,3319.5,3319.4,1.4195]
[1765357443536,5.0923,3319.5,3319.4,1.4195]
[1765357444238,5.0923,3319.5,3319.4,0.7325]
[1765357444440,5.0923,3319.5,3319.4,1.4195]
[1765357445143,5.0923,3319.5,3319.4,0.687]
[1765357445542,5.0923,3319.5,3319.4,1.4195]
[1765357445941,1.8845,3319.5,3319.4,1.4195]
[1765357446440,1.144,3319.5,3319.4,1.4195]
[1765357447445,0.74461752,3319.7,3319.6,1.4684]
[1765357447644,1.48231752,3319.7,3319.6,1.4684]
[1765357453556,0.74461752,3319.7,3319.6,1.4684]
[1765357454854,0.74461752,3319.7,3319.6,1.61902]
[1765357456263,0.00451752,3319.7,3319.6,1.61902]
[1765357457363,0.00451752,3319.7,3319.6,3.77124609]
[1765357458165,0.00451752,3319.7,3319.6,1.61902]
[1765357459067,0.00451752,3319.7,3319.6,3.77124609]
[1765357460271,0.00451752,3319.7,3319.6,1.61902]
[1765357460459,4.6856,3320.4,3320.3,1.4684]
[1765357460970,4.6856,3320.4,3320.3,0.7439]
[1765357461572,4.6880941,3320.4,3320.3,0.7439]
[1765357461969,4.6880941,3320.4,3320.3,1.4684]
[1765357462374,4.6880941,3320.4,3320.3,0.7439]
[1765357464474,4.6880941,3320.4,3320.3,1.4684]
[1765357464670,1.4802941,3320.4,3320.3,2.39951298]
[1765357466370,0.0024941,3320.4,3320.3,2.55010298]
[1765357467676,0.0024941,3320.4,3320.3,3.48121596]
[1765357468173,0.00451752,3320.7,3320.6,1.50117]
[1765357468378,1.4037,3321.3,3321.2,1.3506]
[1765357468575,1.4037,3321.3,3321.2,2.28171298]
[1765357468979,1.40695261,3321.3,3321.2,2.2852777]
[1765357470077,0.67405261,3321.3,3321.2,2.2852777]
[1765357470374,0.00325261,3321.3,3321.2,2.2852777]
[1765357471078,0.67405261,3321.3,3321.2,2.2852777]
[1765357471577,0.00325261,3321.3,3321.2,2.4358277]
[1765357473075,0.6708,3321.6,3321.5,1.3506]
[1765357473380,0.6708,3321.6,3321.5,2.28171298]
[1765357473679,3.2078,3322.2,3321.6,1.50113]
[1765357473680,0.6708,3321.7,3321.6,1.50113]
[1765357473976,0.67447074,3321.7,3321.6,1.50113]
[1765357474275,0.00367074,3321.7,3321.6,1.50113]
[1765357474582,0.67447074,3321.7,3321.6,1.50113]
[1765357477972,0.00367074,3321.7,3321.6,1.50113]
[1765357478385,0.67447074,3321.7,3321.6,1.50113]
[1765357479973,0.8784982,3321.7,3321.6,1.50113]
[1765357480476,0.2076982,3321.7,3321.6,1.50113]
[1765357481287,0.00451752,3322.0,3321.9,1.50111]
[1765357481481,0.00451752,3322.0,3321.9,5.64002298]
[1765357482188,4.6115,3322.7,3322.6,0.6732]
[1765357482482,4.61474717,3322.7,3322.6,1.60431298]
[1765357482682,1.112,3323.0,3322.9,1.3506]
[1765357482881,0.6708,3323.2,3323.1,1.50106]
[1765357483081,1.4037,3323.2,3323.1,1.50106]
[1765357483881,1.40693134,3323.2,3323.1,1.50106]
[1765357484483,1.40693134,3323.2,3323.1,0.82366]
[1765357484685,1.40693134,3323.2,3323.1,1.50106]
[1765357484989,0.67403134,3323.2,3323.1,1.50106]
[1765357486390,1.40723134,3323.2,3323.1,2.43217298]
[1765357486785,1.40723134,3323.2,3322.8,3.21231752]
[1765357486989,1.4495,3322.9,3322.8,0.00451752]
[1765357487589,4.13891298,3323.0,3322.8,0.00451752]
[1765357488189,1.3706,3322.9,3322.8,0.00451752]
[1765357500000,2.30171298,3322.9,3322.8,0.00451752]
[1765357500199,1.4524,3322.3,3322.2,3.2078]
[1765357500402,1.8717,3322.0,3321.9,0.15051]
[1765357500602,1.8717,3322.0,3321.9,0.86571]
[1765357500803,1.8717,3322.0,3321.9,0.15051]
[1765357501194,1.91308796,3322.0,3321.9,0.15051]
[1765357502196,1.91308796,3322.0,3321.9,0.86571]
[1765357502498,1.91308796,3322.0,3321.9,1.54581]
[1765357502809,0.04138796,3322.0,3321.9,1.54581]
[1765357507907,1.1346,3322.5,3322.4,1.418]
[1765357508207,1.1346,3322.5,3322.4,2.34911298]
[1765357509611,0.7153,3322.5,3322.4,2.34911298]
[1765357510610,4.5683,3322.7,3322.6,1.3989]
[1765357513107,1.7709,3322.5,3322.4,0.6961]
[1765357513311,1.3605,3322.4,3322.3,1.5494]
[1765357513814,0.6835,3322.4,3322.3,1.5494]
[1765357514508,0.6835,3322.4,3322.3,2.48051298]
[1765357515406,1.3605,3322.4,3322.3,2.48051298]
[1765357516112,0.6835,3322.4,3322.3,2.48051298]
[1765357516305,4.5683,3322.7,3322.6,1.3989]
[1765357516611,4.5683,3322.7,3322.6,2.33001298]
[1765357516807,3.21103134,3323.2,3322.9,1.3989]
[1765357517011,3.21103134,3323.2,3323.1,2.33001298]
[1765357517214,3.89453134,3323.2,3323.1,2.33001298]
[1765357518112,0.68673134,3323.2,3323.1,2.48047298]
[1765357518812,1.36373134,3323.2,3323.1,2.48047298]
[1765357519002,0.68673134,3323.2,3323.1,2.48047298]
[1765357519603,1.36373134,3323.2,3323.1,2.48047298]
[1765357520014,0.68673134,3323.2,3323.1,2.48047298]
[1765357520715,0.00323134,3323.2,3323.1,2.48047298]
[1765357521422,0.68673134,3323.2,3323.1,2.48047298]
[1765357521714,1.36373134,3323.2,3323.1,2.48047298]
[1765357521917,1.36373134,3323.2,3323.1,1.08157298]
[1765357522106,1.36373134,3323.2,3323.1,0.15046]
[1765357522312,1.3605,3322.7,3322.6,3.897]
[1765357522513,1.3605,3322.6,3322.5,5.72920298]
[1765357524812,1.3605,3322.6,3322.5,4.79809]
[1765357525010,0.6835,3322.6,3322.5,4.79809]
[1765357526118,1.7821,3323.0,3322.9,0.7403]
[1765357526712,0.6903,3322.7,3322.6,2.36980137]
[1765357526914,1.3717,3322.7,3322.6,2.36980137]
[1765357527119,1.3717,3322.6,3322.5,4.09859]
[1765357528117,1.3717,3322.6,3322.5,4.79809]
[1765357528823,1.3717,3322.6,3322.5,4.09859]
[1765357529507,1.41119048,3322.6,3322.5,4.09859]
[1765357532424,1.41119048,3322.6,3322.5,0.15049]
[1765357533723,4.61899048,3322.6,3322.5,0.15049]
[1765357533919,1.3717,3322.2,3322.1,4.6476]
[1765357534124,1.3717,3322.2,3322.1,1.4398]
[1765357534522,1.41119048,3322.2,3322.1,1.4398]
[1765357534822,0.72979048,3322.2,3322.1,1.4398]
[1765357535223,1.41119048,3322.2,3322.1,1.4398]
[1765357537427,1.41119048,3322.2,3322.1,0.7403]
[1765357537622,1.3717,3322.1,3322.0,0.89081]
[1765357537917,1.3717,3322.1,3322.0,0.15051]
[1765357538316,1.3717,3322.1,3321.8,2.15222609]
[1765357538515,1.3717,3321.7,3321.6,0.74481752]
[1765357538715,1.3717,3321.7,3321.6,0.00451752]
[1765357539821,0.72979048,3321.7,3321.6,1.44431752]
[1765357540126,0.03949048,3321.7,3321.6,1.44431752]
[1765357541123,0.03949048,3321.7,3321.6,1.59484752]
[1765357541925,0.72979048,3321.7,3321.6,1.59484752]
[1765357542423,0.03949048,3321.7,3321.6,1.59484752]
[1765357542926,0.72979048,3321.7,3321.6,1.59484752]
[1765357543831,1.41119048,3321.7,3321.6,0.00451752]
[1765357544027,1.3717,3321.3,3321.2,0.00356472]
[1765357544333,5.50950137,3321.3,3321.2,0.00356472]
[1765357544722,5.54899185,3321.3,3321.2,0.00356472]
[1765357544928,5.54899185,3321.3,3320.4,3.2078]
[1765357544929,1.8083,3320.5,3320.4,4.79818]
[1765357545630,1.84779048,3320.5,3320.4,4.79818]
[1765357545829,0.04289675,3320.5,3320.4,4.8010506]
[1765357547721,0.04289675,3320.5,3320.4,16.6750506]
[1765357549634,1.8083,3321.5,3321.4,1.4398]
[1765357550433,1.8083,3321.5,3321.4,0.7403]
[1765357550634,1.81080944,3321.5,3321.4,0.7403]
[1765357557449,0.7007,3321.2,3321.1,1.52975]
[1765357557651,1.4434,3321.2,3321.1,1.52975]
[1765357557949,0.7007,3321.2,3321.1,1.52975]
[1765357560853,1.4434,3321.2,3321.1,1.52975]
[1765357561454,1.4434,3321.2,3321.1,0.15055]
[1765357561751,4.6512,3321.2,3321.1,0.15055]
[1765357561944,4.6512,3321.2,3321.1,0.82605]
[1765357562752,4.6512,3321.2,3321.1,1.52975]
[1765357570958,4.6512,3321.2,3321.1,2.46057495]
[1765357570959,3.2078,3321.2,3321.1,2.46057495]
[1765357571352,0.00250944,3321.5,3321.4,1.53074]
[1765357571552,0.00250944,3321.5,3321.4,2.46156495]
[1765357571958,1.48860944,3321.5,3321.4,1.53074]
[1765357572164,1.90970944,3321.5,3321.4,1.53074]
[1765357572356,1.90970944,3321.5,3321.4,3.6939561]
[1765357573858,1.16520944,3321.5,3321.4,3.6939561]
[1765357574054,1.90970944,3321.5,3321.4,3.6939561]
[1765357575261,1.16520944,3321.5,3321.4,1.53074]
[1765357575463,0.74410944,3321.5,3321.4,1.53074]
[1765357576359,0.00250944,3321.5,3321.4,2.46156495]
[1765357577154,0.00250944,3321.5,3321.4,4.62424191]
[1765357577355,0.74410944,3321.5,3321.4,4.62424191]
[1765357579059,1.90970944,3321.5,3321.4,2.31321696]
[1765357579262,1.90970944,3321.5,3321.4,3.01821696]
[1765357579565,1.90970944,3321.5,3321.4,3.69341696]
[1765357579859,1.90970944,3321.5,3321.4,2.31321696]
[1765357580064,1.90970944,3321.5,3321.4,0.15054]
[1765357580565,1.90970944,3321.5,3321.4,0.85554]
[1765357581458,1.90970944,3321.5,3321.4,0.15054]
[1765357582467,1.90970944,3321.5,3321.4,0.85554]
[1765357583465,1.90970944,3321.5,3321.4,1.59954]
[1765357584359,0.00250944,3321.5,3321.4,1.59954]
[1765357584554,0.71350944,3321.5,3321.4,1.59954]
[1765357586172,1.41820944,3321.5,3321.4,1.59954]
[1765357586766,1.41820944,3321.5,3321.4,2.53014987]
[1765357587470,0.71350944,3321.5,3321.4,2.53014987]
[1765357588974,1.41820944,3321.5,3321.4,2.53014987]
[1765357589474,1.83560944,3321.5,3321.4,2.53014987]
[1765357590671,0.00451752,3321.6,3321.5,1.8385]
[1765357590871,5.0601,3322.0,3321.9,1.4484]
[1765357591078,5.0601,3322.0,3321.9,1.63500987]
[1765357591767,5.06276782,3322.0,3321.9,1.63500987]
[1765357591979,5.06276782,3322.0,3321.9,0.93060987]
[1765357592276,1.4157,3321.9,3321.8,1.62159222]
[1765357594976,1.4157,3321.9,3321.8,2.32599222]
[1765357595579,1.4157,3321.9,3321.8,1.62159222]
[1765357595772,1.4157,3321.9,3321.8,2.32599222]
[1765357595972,3.64706782,3322.0,3321.9,1.4484]
[1765357595973,4.35806782,3322.0,3321.9,1.4484]
[1765357596175,0.00266782,3322.0,3321.9,1.4484]
[1765357597277,0.00266782,3322.0,3321.9,1.59891]
[1765357599583,0.00266782,3322.0,3321.9,2.52951987]
[1765357600381,0.00266782,3322.0,3321.9,5.73731987]
[1765357609082,0.00266782,3322.0,3321.9,7.8990537]
[1765357611678,0.00451752,3322.3,3322.2,1.5989]
[1765357611877,0.00451752,3322.3,3322.2,14.39550987]
[1765357612279,3.9188,3323.0,3322.9,1.4484]
[1765357612485,3.2078,3323.0,3322.9,15.86491747]
[1765357612784,0.00375386,3323.0,3322.9,14.24763891]
[1765357613186,0.00375386,3323.0,3322.9,16.01825179]
[1765357614386,0.00375386,3323.0,3322.9,16.2587544]
[1765357614586,0.00375386,3323.0,3322.9,17.84641152]
[1765357614881,0.00451752,3323.3,3323.2,1.54066]
[1765357615086,0.00451752,3323.3,3323.2,2.47126987]